bitfinex-derivatives/quotes_SOLF0:USTF0_20250924
["timestamp","ask_amount","ask_price","bid_price","bid_amount"]
[1758688531465,71.3568,208.74,208.62,8.03]
[1758688531859,67.0337,208.78,208.62,8.03]
[1758688532063,4.3095,208.77,208.65,8.03]
[1758688536275,4.31,208.75,208.65,8.03]
[1758688537375,4.3094,208.78,208.65,8.03]
[1758688538870,4.3094,208.78,208.66,4.3116]
[1758688539069,4.3094,208.78,208.67,8.03]
[1758688540072,4.3088,208.81,208.69,8.03]
[1758688540279,14.67809692,208.82,208.69,8.03]
[1758688540477,67.0147,208.84,208.69,8.03]
[1758688541381,67.0211,208.82,208.69,8.03]
[1758688541775,67.0211,208.82,208.64,67.0772]
[1758688541776,4.31,208.75,208.64,129.8]
[1758688541980,67.0502,208.73,208.5,8.03]
[1758688542277,4.3114,208.68,208.56,4.3137]
[1758688542471,67.0471,208.74,208.58,8.03]
[1758688542984,67.0468,208.74,208.61,8.03]
[1758688543168,67.0369,208.77,208.61,8.03]
[1758688543572,67.0504,208.73,208.61,8.03]
[1758688543977,4.3109,208.71,208.61,8.03]
[1758688544283,67.0434,208.75,208.61,8.03]
[1758688544780,4.3106,208.72,208.61,8.03]
[1758688545175,67.0373,208.77,208.61,8.03]
[1758688545480,67.041,208.76,208.61,8.03]
[1758688545781,4.3098,208.76,208.65,8.03]
[1758688545970,67.0241,208.81,208.65,8.03]
[1758688546168,14.42941519,208.82,208.65,8.03]
[1758688546375,4.3086,208.82,208.69,8.03]
[1758688546979,4.3089,208.8,208.69,8.03]
[1758688547575,78.85348,208.85,208.69,12.3409]
[1758688548778,4.3083,208.83,208.69,12.3409]
[1758688548973,4.3083,208.83,208.71,4.3106]
[1758688550587,26.24412234,208.85,208.71,4.3106]
[1758688550879,26.24412234,208.85,208.73,4.3101]
[1758688551081,93.25572234,208.85,208.72,8.03]
[1758688552188,67.0248,208.81,208.72,8.03]
[1758688552385,67.0248,208.81,208.68,113.46]
[1758688552887,26.24412234,208.85,208.69,8.03]
[1758688553082,93.25622234,208.85,208.69,8.03]
[1758688553278,93.25562234,208.85,208.69,8.03]
[1758688553485,4.3091,208.79,208.69,8.03]
[1758688555489,4.3095,208.77,208.69,8.03]
[1758688555786,67.0369,208.77,208.66,129.66]
[1758688555987,67.022,208.82,208.67,7.77]
[1758688557790,4.3094,208.78,208.68,4.3113]
[1758688557986,72.20866256,208.84,208.67,67.068]
[1758688558186,67.0146,208.84,208.68,7.77]
[1758688558785,4.3088,208.81,208.7,4.3108]
[1758688560391,4.3091,208.79,208.7,4.3108]
[1758688561486,4.3086,208.82,208.71,7.77]
[1758688561684,4.3086,208.82,208.72,4.3104]
[1758688562788,26.24412234,208.85,208.75,7.77]
[1758688563794,4.308,208.84,208.75,7.77]
[1758688563991,26.24412234,208.85,208.71,12.0805]
[1758688564192,67.0212,208.82,208.71,7.77]
[1758688564693,67.0178,208.83,208.65,7.77]
[1758688564694,67.0279,208.8,208.65,7.77]
[1758688565291,4.3097,208.76,208.66,4.3117]
[1758688565599,67.035,208.78,208.65,7.77]
[1758688565898,67.0437,208.75,208.65,7.77]
[1758688566387,4.31,208.75,208.65,7.77]
[1758688566594,4.31,208.75,208.65,12.0819]
[1758688567296,5.19406256,208.82,208.68,7.77]
[1758688567689,67.0274,208.8,208.68,7.77]
[1758688568394,4.3095,208.77,208.68,7.77]
[1758688569192,67.0286,208.8,208.63,7.77]
[1758688569393,67.0347,208.78,208.63,7.77]
[1758688569698,4.3101,208.75,208.65,4.3119]
[1758688570090,67.0434,208.75,208.63,7.77]
[1758688570296,67.0434,208.75,208.63,129.63]
[1758688570598,67.0246,208.81,208.65,7.77]
[1758688571796,4.3095,208.77,208.69,4.3111]
[1758688571996,4.3095,208.77,208.69,12.0811]
[1758688572490,4.3091,208.8,208.7,4.3107]
[1758688572695,26.24412234,208.85,208.7,7.77]
[1758688573888,4.3084,208.83,208.72,4.3105]
[1758688574095,26.24412234,208.85,208.72,133.7305]
[1758688574593,4.3087,208.81,208.7,7.77]
[1758688575099,4.3087,208.81,208.71,129.4]
[1758688577089,4.3087,208.81,208.72,4.3105]
[1758688578196,67.0244,208.81,208.7,7.77]
[1758688578397,67.0244,208.81,208.7,137.13]
[1758688579098,67.0149,208.84,208.72,7.65]
[1758688579099,5.19406256,208.84,208.72,7.65]
[1758688579301,98.4502849,208.85,208.72,7.65]
[1758688579494,93.25622234,208.85,208.72,7.65]
[1758688579801,4.3082,208.84,208.73,4.3103]
[1758688580196,26.24412234,208.85,208.72,67.0526]
[1758688580500,26.24412234,208.85,208.73,7.65]
[1758688582096,26.24412234,208.85,208.76,7.65]
[1758688582097,11.84098,208.85,208.76,7.65]
[1758688582797,11.84098,208.85,208.79,4.309]
[1758688582997,11.84098,208.85,208.79,133.589]
[1758688583598,11.84098,208.85,208.81,4.3086]
[1758688583898,11.84098,208.85,208.8,7.65]
[1758688584094,11.22156019,208.85,208.83,4.3082]
[1758688584301,3.66906019,208.85,208.84,7.65]
[1758688584499,1.87,208.97,208.84,8.13]
[1758688584694,1.87,208.97,208.84,7.65]
[1758688584999,1.87,208.97,208.84,11.9578]
[1758688585701,1.87,208.92,208.84,7.65]
[1758688585902,1.87,208.92,208.84,107.52]
[1758688586397,1.87,208.92,208.8,11.9587]
[1758688586398,14.01072946,208.93,208.8,7.65]
[1758688586601,1.87,208.9,208.8,68.65]
[1758688587803,4.3071,208.89,208.8,68.65]
[1758688588793,4.3074,208.87,208.71,70.42287764]
[1758688589001,67.0114,208.85,208.75,7.65]
[1758688589401,4.3088,208.81,208.68,7.65]
[1758688589903,4.3091,208.79,208.69,129.16]
[1758688590201,68.8983,208.8,208.69,129.14]
[1758688590508,1.87,208.75,208.63,7.65]
[1758688590903,1.87,208.75,208.63,136.79]
[1758688591301,4.3104,208.73,208.63,136.79]
[1758688591702,1.87,208.75,208.63,203.8716]
[1758688591913,1.87,208.84,208.67,7.65]
[1758688592409,4.3085,208.82,208.71,7.65]
[1758688592606,4.3085,208.82,208.71,111.09]
[1758688593204,4.3089,208.8,208.71,111.09]
[1758688594003,4.3093,208.78,208.71,7.65]
[1758688594304,4.3093,208.78,208.65,7.65]
[1758688594502,4.3093,208.78,208.66,129.1]
[1758688595111,4.3093,208.78,208.67,4.3115]
[1758688595714,1.87,208.8,208.67,4.3115]
[1758688596322,4.3091,208.79,208.67,4.3115]
[1758688597715,4.3096,208.77,208.68,129.06]
[1758688598521,6.179,208.8,208.69,7.65]
[1758688598714,1.87,208.8,208.69,7.65]
[1758688598916,1.87,208.8,208.7,129.04]
[1758688599123,4.3094,208.78,208.7,129.04]
[1758688599324,1.87,208.8,208.7,129.04]
[1758688600426,1.87,208.84,208.71,7.65]
[1758688600925,67.0076,208.87,208.71,7.65]
[1758688601327,4.3082,208.84,208.74,7.65]
[1758688601827,6.1782,208.84,208.74,7.65]
[1758688602025,1.87,208.84,208.74,7.65]
[1758688602827,4.3083,208.83,208.74,136.65]
[1758688603029,68.8857,208.84,208.74,7.65]
[1758688603224,4.3091,208.79,208.69,7.65]
[1758688603427,1.87,208.81,208.7,129.0]
[1758688603621,1.87,208.85,208.71,7.65]
[1758688603928,4.3083,208.83,208.71,7.65]
[1758688604126,1.87,208.85,208.75,7.65]
[1758688605025,4.3081,208.84,208.75,7.65]
[1758688605530,1.87,208.9,208.75,7.65]
[1758688605928,6.1769,208.9,208.76,7.65]
[1758688606628,4.307,208.89,208.8,7.65]
[1758688609231,4.3066,208.92,208.8,7.65]
[1758688609733,4.3066,208.92,208.82,7.65]
[1758688610331,14.60282736,208.93,208.83,4.3081]
[1758688610527,1.87,208.96,208.84,7.65]
[1758688610832,1.87,208.96,208.85,122.86]
[1758688611033,20.28567396,208.96,208.85,122.86]
[1758688611234,4.3057,208.96,208.86,7.65]
[1758688611533,1.87,209.0,208.86,7.65]
[1758688611834,20.29211731,209.0,208.86,7.65]
[1758688612136,20.29211731,209.0,208.87,7.65]
[1758688612630,4.3052,208.98,208.87,7.65]
[1758688613027,4.3052,208.98,208.88,128.82]
[1758688613229,15.98731731,209.0,208.89,7.65]
[1758688613636,66.9705,208.98,208.89,7.65]
[1758688613834,4.3056,208.96,208.89,7.65]
[1758688614338,4.306,208.94,208.89,7.65]
[1758688614527,4.306,208.94,208.85,7.91]
[1758688614727,1.86,208.96,208.86,128.78]
[1758688615435,14.11731731,209.0,208.87,7.91]
[1758688615629,68.8181,209.02,208.87,7.91]
[1758688615826,1.86,209.02,208.87,12.2173]
[1758688616026,1.86,209.02,208.88,7.91]
[1758688616342,14.01917121,209.03,208.93,66.9854]
[1758688616636,14.01917121,209.03,208.95,4.3057]
[1758688616936,66.9452,209.06,208.96,136.65]
[1758688617129,66.9442,209.06,208.96,136.65]
[1758688617330,66.9506,209.04,208.96,7.91]
[1758688617526,14.3211923,209.04,208.96,136.63]
[1758688617731,1.86,209.07,208.96,136.63]
[1758688617933,1.86,209.07,208.96,128.72]
[1758688618133,1.86,209.07,208.97,7.91]
[1758688618736,4.3035,209.06,208.97,7.91]
[1758688618936,1.86,209.07,208.97,7.91]
[1758688619438,1.86,209.07,208.98,128.68]
[1758688619639,6.1634,209.07,208.98,128.68]
[1758688620030,18.82336469,209.07,208.98,128.68]
[1758688620231,0.83289455,209.08,208.99,7.91]
[1758688620438,1.86,209.12,208.99,7.91]
[1758688620936,0.83266537,209.14,208.99,7.91]
[1758688621136,0.83266537,209.14,208.98,128.68]
[1758688621137,19.14776475,209.14,209.0,7.91]
[1758688621341,66.9072,209.18,209.01,7.91]
[1758688621540,4.3018,209.15,209.03,7.91]
[1758688621844,1.86,209.16,209.05,7.91]
[1758688622241,6.1616,209.16,209.05,7.91]
[1758688622441,15.9335162,209.16,209.05,7.91]
[1758688622642,66.9154,209.15,209.05,7.91]
[1758688622837,4.3023,209.12,209.05,129.55]
[1758688623538,6.1628,209.1,208.98,7.91]
[1758688623739,1.86,209.1,208.99,128.58]
[1758688623937,1.86,209.1,209.0,7.91]
[1758688624545,4.3034,209.07,209.0,7.91]
[1758688624746,4.3034,209.07,209.0,136.47]
[1758688625349,4.3034,209.07,209.0,7.91]
[1758688625545,4.3034,209.07,208.97,128.54]
[1758688625840,4.3038,209.05,208.95,7.91]
[1758688626142,1.86,209.06,208.96,128.54]
[1758688626743,6.1636,209.06,208.96,128.54]
[1758688627042,1.86,209.06,208.96,128.54]
[1758688627247,4.3038,209.05,208.96,128.54]
[1758688627545,1.86,209.06,208.96,128.54]
[1758688627946,4.304,209.04,208.96,128.54]
[1758688628247,66.9574,209.02,208.95,7.91]
[1758688628443,66.9602,209.01,208.89,7.91]
[1758688628748,1.86,209.02,208.9,120.12]
[1758688629453,1.86,209.02,208.91,7.91]
[1758688629844,66.961,209.01,208.91,7.91]
[1758688630146,66.967,208.99,208.91,7.91]
[1758688630339,68.83,208.98,208.83,7.91]
[1758688630543,66.973,208.97,208.88,7.91]
[1758688630742,66.9766,208.96,208.82,361.8]
[1758688631046,68.8399,208.95,208.83,136.35]
[1758688631244,1.86,208.95,208.83,136.35]
[1758688631441,1.86,208.95,208.84,7.91]
[1758688632143,66.9606,209.01,208.79,4.12501399]
[1758688632144,68.8527,208.91,208.79,8.66813635]
[1758688632346,82.92729383,208.91,208.79,137.08813635]
[1758688632544,15.93459383,208.91,208.79,137.08813635]
[1758688632848,82.92799383,208.91,208.79,137.08813635]
[1758688633046,15.93459383,208.91,208.79,137.08813635]
[1758688633243,15.93459383,208.91,208.8,7.91]
[1758688633443,4.3061,208.94,208.8,7.91]
[1758688633640,18.36862626,208.94,208.8,7.91]
[1758688633847,4.3061,208.94,208.8,7.91]
[1758688634042,1.87,208.92,208.8,7.91]
[1758688634239,1.87,208.92,208.81,128.4]
[1758688634648,14.22319988,208.94,208.82,7.92]
[1758688634953,1.87,208.96,208.82,7.92]
[1758688635253,6.1757,208.96,208.85,7.92]
[1758688635648,1.87,208.96,208.86,4.3075]
[1758688635948,1.87,208.96,208.85,7.92]
[1758688636945,4.3058,208.95,208.85,7.92]
[1758688637148,18.83553883,208.95,208.85,7.92]
[1758688637349,68.8469,208.96,208.85,7.92]
[1758688637552,1.87,208.96,208.85,7.92]
[1758688638255,6.1757,208.96,208.85,7.92]
[1758688638656,1.87,209.01,208.85,7.92]
[1758688639352,14.35986469,209.02,208.9,7.92]
[1758688639545,1.87,209.06,208.9,7.92]
[1758688639951,6.1736,209.06,208.93,7.92]
[1758688640155,6.1736,209.06,208.94,128.34]
[1758688640357,6.1736,209.06,208.94,132.646]
[1758688641454,6.1736,209.06,208.95,7.92]
[1758688641857,6.1736,209.06,208.96,128.32]
[1758688642153,1.87,209.06,208.97,128.32]
[1758688642355,4.303,209.09,208.98,7.92]
[1758688642950,1.87,209.11,208.99,7.92]
[1758688643256,68.7826,209.16,208.99,7.92]
[1758688643460,20.71246055,209.16,209.02,4.3043]
[1758688643652,16.41096055,209.16,209.03,7.7]
[1758688644250,16.41096055,209.16,209.05,7.7]
[1758688644455,14.54096055,209.16,209.05,7.7]
[1758688644755,68.7862,209.12,208.92,66.9873]
[1758688644955,68.7862,209.12,208.96,7.7]
[1758688645255,68.7862,209.12,208.95,66.9786]
[1758688645256,5.19406256,209.16,209.01,7.7]
[1758688645560,1.86,209.13,209.03,7.7]
[1758688645760,66.9283,209.11,209.02,128.24]
[1758688646062,66.9352,209.09,208.98,7.7]
[1758688646362,66.9441,209.06,208.98,7.7]
[1758688646757,5.19406256,209.12,208.98,7.7]
[1758688647059,82.37232734,209.17,208.98,7.7]
[1758688647060,68.7821,209.13,208.98,7.7]
[1758688647253,1.86,209.13,208.98,7.7]
[1758688647455,68.7816,209.13,208.98,7.7]
[1758688647960,5.19406256,209.15,208.98,7.7]
[1758688648163,1.86,209.08,208.94,7.7]
[1758688648359,73.97626256,209.13,208.96,7.7]
[1758688648555,4.3026,209.11,208.98,7.7]
[1758688648858,4.3026,209.11,208.99,4.3048]
[1758688649061,1.86,209.13,209.0,7.7]
[1758688649256,68.7826,209.13,209.01,90.58]
[1758688649456,1.86,209.13,209.01,90.58]
[1758688650057,15.46172734,209.17,209.01,90.58]
[1758688650058,0.83256576,209.17,209.03,7.7]
[1758688650658,1.86,209.14,209.03,7.7]
[1758688651165,1.86,209.14,209.03,69.0]
[1758688651365,4.3017,209.15,209.04,7.7]
[1758688651556,4.3017,209.15,209.05,67.44]
[1758688651757,4.3017,209.15,209.06,7.7]
[1758688652556,15.12253013,209.17,209.06,60.38]
[1758688653662,4.3015,209.16,209.06,60.38]
[1758688653866,66.9135,209.16,209.06,7.7]
[1758688654166,68.7725,209.16,209.06,7.7]
[1758688654368,66.9218,209.13,209.01,7.7]
[1758688654559,1.86,209.14,209.01,126.66]
[1758688654560,4.3025,209.11,209.01,126.66]
[1758688654758,1.86,209.14,209.01,126.66]
[1758688654963,1.86,209.14,209.02,7.7]
[1758688655267,20.31659269,209.17,209.04,7.7]
[1758688655654,19.42393013,209.17,209.04,7.7]
[1758688656363,19.42393013,209.17,209.05,4.3037]
[1758688656564,19.42393013,209.17,209.06,7.7]
[1758688657466,15.12253013,209.17,209.06,7.7]
[1758688657766,1.86,209.14,209.06,7.7]
[1758688658566,4.3021,209.13,209.06,7.7]
[1758688659067,1.86,209.14,209.06,7.7]
[1758688659465,4.3021,209.13,209.06,7.7]
[1758688660864,9.49566256,209.16,209.06,7.7]
[1758688661570,20.31659269,209.17,209.06,7.7]
[1758688662175,4.3015,209.16,209.06,7.7]
[1758688662362,4.3015,209.16,209.06,135.66]
[1758688663166,4.3015,209.16,209.06,135.64]
[1758688663569,4.3015,209.16,209.07,7.7]
[1758688663968,4.3019,209.14,209.07,7.7]
[1758688664977,7.05406256,209.19,209.07,7.7]
[1758688665371,4.3019,209.14,209.07,7.7]
[1758688665568,5.19406256,209.18,209.07,7.7]
[1758688665776,7.05406256,209.19,209.07,7.7]
[1758688665969,7.05406256,209.19,209.08,4.303]
[1758688666169,7.05406256,209.19,209.09,7.7]
[1758688666583,4.3015,209.16,209.09,7.7]
[1758688666771,66.9121,209.16,209.09,7.7]
[1758688666969,4.3017,209.15,209.09,7.7]
[1758688667169,68.7733,209.16,209.09,7.7]
[1758688667477,1.86,209.16,209.06,7.7]
[1758688667787,4.3016,209.16,209.06,7.7]
[1758688667971,72.10126256,209.18,209.07,127.86]
[1758688668179,4.3019,209.14,209.06,7.7]
[1758688668483,1.86,209.16,209.06,7.7]
[1758688668682,68.7725,209.16,209.06,7.7]
[1758688668981,4.3025,209.11,209.0,366.0446]
[1758688669181,4.3025,209.11,209.02,7.7]
[1758688669581,66.9168,209.15,209.02,7.7]
[1758688669777,66.9168,209.15,209.0,361.74]
[1758688669778,4.302,209.14,209.03,7.7]
[1758688670084,4.302,209.14,209.05,7.7]
[1758688670576,4.302,209.14,209.05,135.54]
[1758688670777,4.3023,209.12,209.05,7.7]
[1758688671087,1.86,209.16,209.05,7.7]
[1758688671584,4.3017,209.15,209.05,7.7]
[1758688672179,4.3021,209.13,209.05,7.7]
[1758688673680,6.1616,209.16,209.07,8.02]
[1758688673980,4.3016,209.16,209.07,8.02]
[1758688674490,14.46490121,209.19,209.04,127.8]
[1758688674491,18.76590121,209.19,209.09,8.02]
[1758688674790,1.85,209.2,209.09,8.02]
[1758688675379,1.85,209.2,209.1,4.3026]
[1758688675792,1.85,209.2,209.09,8.02]
[1758688675990,4.301,209.18,209.09,8.02]
[1758688676193,4.301,209.18,209.09,135.78]
[1758688676495,14.51737013,209.19,209.09,8.02]
[1758688676693,1.85,209.2,209.09,8.02]
[1758688677303,1.85,209.2,209.09,135.76]
[1758688677587,4.301,209.18,209.09,8.02]
[1758688678185,1.85,209.2,209.1,4.3026]
[1758688678491,1.85,209.2,209.09,8.02]
[1758688678888,1.85,209.2,209.09,135.74]
[1758688679090,66.9031,209.19,209.09,8.02]
[1758688679396,66.9027,209.19,209.09,8.02]
[1758688679599,4.3015,209.16,209.09,8.02]
[1758688680596,4.3021,209.13,209.09,8.02]
[1758688680794,4.3021,209.13,209.03,135.06]
[1758688680989,4.3021,209.13,209.03,127.04]
[1758688681190,4.3017,209.15,209.06,8.02]
[1758688682393,4.3017,209.15,209.06,135.68]
[1758688682593,5.19406256,209.17,209.07,8.02]
[1758688682594,4.3012,209.17,209.07,8.02]
[1758688684103,4.3012,209.17,209.08,8.02]
[1758688684400,9.49526256,209.17,209.08,8.02]
[1758688684600,4.3017,209.15,209.08,135.64]
[1758688685103,68.7657,209.15,209.08,8.02]
[1758688685304,5.19406256,209.14,209.08,8.02]
[1758688685494,5.19406256,209.15,209.08,8.02]
[1758688685803,5.19406256,209.16,209.08,8.02]
[1758688686003,7.37469252,209.18,209.08,8.02]
[1758688686203,5.19406256,209.18,209.09,4.3029]
[1758688687198,5.19406256,209.17,209.09,4.3029]
[1758688687404,5.19406256,209.17,209.08,8.02]
[1758688687702,5.19406256,209.16,209.08,8.02]
[1758688687905,7.04406256,209.14,209.02,8.02]
[1758688688109,7.04406256,209.14,209.05,135.6]
[1758688688404,4.3021,209.13,209.05,135.6]
[1758688689307,5.19406256,209.15,209.06,8.02]
[1758688689508,9.49556256,209.16,209.06,8.02]
[1758688689805,4.3012,209.17,209.08,8.02]
[1758688690006,7.04406256,209.18,209.08,8.02]
[1758688690208,5.19406256,209.17,209.09,127.54]
[1758688690599,7.04406256,209.18,209.09,127.54]
[1758688691006,4.3017,209.15,209.09,127.54]
[1758688691602,7.04406256,209.18,209.1,8.02]
[1758688691903,5.19406256,209.17,209.1,8.02]
[1758688692105,7.04406256,209.18,209.1,8.02]
[1758688692708,4.3018,209.15,209.1,8.02]
[1758688693306,4.3027,209.1,209.02,8.02]
[1758688693504,7.04406256,209.14,209.02,8.02]
[1758688693706,1.85,209.14,209.04,8.02]
[1758688694500,5.19406256,209.15,209.04,8.02]
[1758688694702,5.19406256,209.15,209.07,7.71]
[1758688694906,5.19406256,209.14,209.07,7.71]
[1758688695105,5.19406256,209.15,209.07,135.17]
[1758688695310,4.3023,209.12,209.07,7.71]
[1758688695605,5.19406256,209.14,209.08,7.71]
[1758688695811,5.19406256,209.14,209.05,135.17]
[1758688696709,9.49606256,209.14,209.05,135.17]
[1758688697113,5.19406256,209.16,209.06,7.71]
[1758688697411,5.19406256,209.17,209.06,7.71]
[1758688697607,5.19406256,209.17,209.08,7.71]
[1758688697810,4.3015,209.16,209.09,127.42]
[1758688698105,5.19406256,209.15,209.08,135.13]
[1758688698510,5.19406256,209.16,209.08,135.13]
[1758688698909,7.37469252,209.17,209.08,135.13]
[1758688699112,5.19406256,209.16,209.08,135.13]
[1758688699305,5.19406256,209.16,209.08,7.71]
[1758688699509,72.10686256,209.16,209.08,7.71]
[1758688699808,5.19406256,209.14,209.08,7.71]
[1758688700001,4.3026,209.11,209.08,7.71]
[1758688700204,4.3026,209.11,209.02,7.71]
[1758688700411,4.3026,209.11,209.04,7.71]
[1758688700610,1.39627962,209.12,209.04,7.71]
[1758688701007,5.19406256,209.16,209.06,7.71]
[1758688701207,6.59034218,209.17,209.08,7.71]
[1758688701608,1.39627962,209.17,209.1,7.71]
[1758688702015,9.49516256,209.18,209.1,7.71]
[1758688702315,5.19406256,209.18,209.1,7.71]
[1758688702511,5.19406256,209.18,209.1,12.0125]
[1758688704114,4.3013,209.17,209.1,7.71]
[1758688705316,9.49536256,209.17,209.1,7.71]
[1758688705518,4.3016,209.16,209.1,7.71]
[1758688707010,5.19406256,209.17,209.1,7.71]
[1758688707215,5.19406256,209.17,209.11,127.3]
[1758688708017,6.59034218,209.16,209.1,7.71]
[1758688708613,5.19406256,209.17,209.1,7.71]
[1758688709315,5.19406256,209.18,209.1,7.71]
[1758688709518,5.19406256,209.17,209.1,7.71]
[1758688709819,5.19406256,209.16,209.1,134.97]
[1758688710318,9.49546256,209.17,209.1,134.97]
[1758688711219,10.89174218,209.17,209.1,134.97]
[1758688711522,6.59034218,209.17,209.1,7.71]
[1758688711716,5.19406256,209.16,209.1,7.71]
[1758688711916,5.19406256,209.16,209.1,134.95]
[1758688712817,4.3019,209.14,209.1,127.24]
[1758688713120,5.19406256,209.18,209.11,7.28]
[1758688713322,5.19406256,209.18,209.12,7.28]
[1758688713617,5.19406256,209.18,209.07,1.39627962]
[1758688713809,5.19406256,209.18,209.08,7.28]
[1758688714009,5.19406256,209.19,209.1,7.28]
[1758688714210,5.19406256,209.19,209.11,7.28]
[1758688715628,6.59034218,209.19,209.11,7.28]
[1758688716522,6.59034218,209.19,209.07,1.39627962]
[1758688716724,5.19406256,209.19,209.11,7.28]
[1758688716919,5.19406256,209.2,209.13,7.28]
[1758688717115,6.59034218,209.18,209.15,7.28]
[1758688717318,6.59034218,209.18,209.14,127.16]
[1758688717523,6.59034218,209.18,209.15,7.28]
[1758688717724,5.19406256,209.18,209.15,7.28]
[1758688718118,5.19406256,209.18,209.04,70.97431145]
[1758688718323,5.19406256,209.19,209.11,7.28]
[1758688718518,5.19406256,209.19,209.13,7.28]
[1758688718714,5.19406256,209.18,209.14,127.14]
[1758688718916,5.19406256,209.19,209.15,7.28]
[1758688719123,9.49476256,209.2,209.11,7.28]
[1758688719321,5.19406256,209.19,209.15,7.28]
[1758688719531,5.19406256,209.19,209.12,99.64]
[1758688719827,7.06406256,209.22,209.13,7.28]
[1758688720027,4.3001,209.23,209.13,7.28]
[1758688720028,6.59034218,209.23,209.13,8.67627962]
[1758688720217,5.19406256,209.23,209.13,8.67627962]
[1758688720419,6.59034218,209.23,209.13,8.67627962]
[1758688720819,6.59034218,209.23,209.15,7.28]
[1758688721020,1.39627962,209.23,209.16,4.29254105]
[1758688721231,5.19406256,209.24,209.17,4.29254105]
[1758688721432,5.19406256,209.25,209.19,7.28]
[1758688721723,1.87,209.27,209.2,65.47254105]
[1758688721930,1.87,209.27,209.21,4.29254105]
[1758688722120,1.39627962,209.27,209.23,7.28]
[1758688722318,6.1694,209.26,209.24,4.29254105]
[1758688722625,5.69567962,209.26,209.25,4.28809221]
[1758688723028,7.06406256,209.28,209.25,4.28809221]
[1758688723227,7.06406256,209.28,209.21,7.28]
[1758688723228,5.19406256,209.28,209.21,7.28]
[1758688723427,12.75934218,209.29,209.22,4.28675659]
[1758688723623,3.26627962,209.28,209.23,4.28675659]
[1758688723831,1.87,209.27,209.24,4.28675659]
[1758688724029,1.87,209.27,209.25,4.28675659]
[1758688724234,1.87,209.27,209.21,7.28]
[1758688724429,1.87,209.26,209.22,4.29287864]
[1758688724625,6.1694,209.27,209.23,4.29287864]
[1758688724829,1.39627962,209.29,209.25,7.28]
[1758688725326,3.26627962,209.29,209.25,7.28]
[1758688725628,1.39627962,209.26,209.2,7.28]
[1758688725829,1.87,209.25,209.21,4.29165003]
[1758688726032,4.3,209.24,209.22,4.29165003]
[1758688726231,4.3,209.24,209.17,27.38]
[1758688726527,4.3,209.24,209.18,4.29220086]
[1758688726728,1.87,209.21,209.19,4.29220086]
[1758688726940,1.87,209.22,209.2,4.29220086]
[1758688727125,1.87,209.22,209.21,4.29220086]
[1758688727328,6.1703,209.22,209.21,4.29220086]
[1758688727529,1.39627962,209.24,209.21,4.29220086]
[1758688727834,7.56627962,209.24,209.22,4.29220086]
[1758688728023,5.19406256,209.27,209.18,1.39627962]
[1758688728340,1.39627962,209.27,209.2,7.28]